Cogmind - Beta 13 @@@ ROGUE MODE // 2024.05.23 @ 07:19:49 Player: Haldron Result: Destroyed by S-10 Pest with Light Assault Rifle Performance ------------- Evolutions (0) 0 Regions Visited (2) 400 Robots Destroyed (30) 150 Value Destroyed (585) 585 Prototype IDs (0) 0 Alien Tech Used (0) 0 Bonus (0) 0 TOTAL SCORE: 1135 Bonus ------- None Cogmind --------- Core Integrity 0/250 Matter 228/300 Energy 246/250 System Corruption 0% Temperature Cool (2) Movement Treading (160) Location -10/Mines Parts ------- > --- POWER (1) -------- Ion Engine > --- PROPULSION (2) --- Light Treads Light Treads > --- UTILITY (2) ------ Heat Sink Large Storage Unit > --- WEAPON (2) ------- Particle Gun Grenade Launcher > --- INVENTORY (15) --- Ion Engine Light Treads Light Treads Compact Wheel Heat Sink Sensor Array Experimental Sensor Array Signal Interpreter Hacking Suite EM Pulse Gun Small Laser Small Laser Assault Rifle Assault Rifle Mining Laser Peak State ------------ > --- POWER ------------ Ion Engine > --- PROPULSION ------- Light Treads Light Treads > --- UTILITY ---------- Heat Sink Large Storage Unit > --- WEAPON ----------- Small Laser Particle Gun > --- INVENTORY -------- Ion Engine Light Treads Light Treads Compact Wheel Heat Sink Sensor Array Experimental Sensor Array Signal Interpreter Hacking Suite EM Pulse Gun Small Laser Assault Rifle Assault Rifle Grenade Launcher Mining Laser [Rating: 10] Favorites ----------- Power Ion Engine Engine Ion Engine Propulsion Light Treads Treads Light Treads Wheel Compact Wheel Utility Large Storage Unit Device Heat Sink Storage Large Storage Unit Protection Utility Shielding Weapon Small Laser Energy Gun Small Laser Ballistic Gun Light Assault Rifle Launcher Grenade Launcher Slashing Weapon Mining Claw Build | -11 -10 -10 ------- Run | Yrd Mat Min Slots Evolved . | . . . Power . | . . . Propulsion . | . . . Utility . | . . . Weapon . | . . . Parts Attached 27 | 7 16 4 Power 3 | 1 2 . Engine 3 | 1 2 . Core . | . . . Reactor . | . . . Propulsion 6 | 2 3 1 Treads 5 | 1 3 1 Leg . | . . . Wheel 1 | 1 . . Hover . | . . . Flight . | . . . Utility 6 | 2 4 . Device 2 | 1 1 . Storage 3 | 1 2 . Processor . | . . . Hackware . | . . . Protection 1 | . 1 . Artifact . | . . . Weapon 12 | 2 7 3 Energy Gun 6 | 1 4 1 Energy Cannon . | . . . Ballistic Gun 3 | 1 2 . Ballistic Cannon . | . . . Launcher 2 | . . 2 Special Weapon . | . . . Impact Weapon . | . . . Slashing Weapon 1 | . 1 . Piercing Weapon . | . . . Special Melee Weapon . | . . . Unidentified Prototypes . | . . . Parts Lost 5 | . 5 . Power 1 | . 1 . Propulsion 1 | . 1 . Utility 1 | . 1 . Weapon 2 | . 2 . Highest Loss Streak 3 | . 3 . To Critical Strikes . | . . . Average Slot Usage (%) 99 | . 99 100 Engine 13 | . 13 14 Treads 26 | . 26 28 Wheel 1 | . 1 . Device 10 | . 8 14 Storage 14 | . 14 14 Protection 3 | . 5 . Energy Gun 17 | . 15 22 Ballistic Gun 9 | . 12 . Launcher 1 | . . 5 Naked Turns . | . . . Heaviest Build 32 | 14 31 32 Greatest Support 40 | 16 40 40 Greatest Overweight (x) 1 | . 1 . Average Overweight (x) . | . . . Largest Inventory Capacity 15 | 8 15 15 Average Capacity 13 | 6 12 15 Most Carried 15 | 4 15 15 Average Carried 12 | 3 11 14 Final Capacity 15 | 8 15 15 Final Carried 15 | 4 15 15 Class Distribution -------------------- 67% | Mutant 32% | Scavenger-Mutant Dominant Class ---------------- Mutant | -10/Materials Mutant | -10/Mines Resources | -11 -10 -10 ----------- Run | Yrd Mat Min Matter Collected 585 | 273 287 25 Remotely . | . . . Salvage Created 820 | 30 693 97 Parts 66 | 2 54 10 Haulers Intercepted 2 | . 2 . Recyclers Shooed . | . . . Parts Field Recycled . | . . . Retrieved Matter . | . . . Parts Self-Destructed . | . . . Prevented . | . . . Kills | -11 -10 -10 ------- Run | Yrd Mat Min Combat Hostiles Destroyed 23 | . 15 8 Guns 17 | . 15 2 AOE 6 | . . 6 Classes Destroyed 7 | 1 6 . Tunneler 1 | 1 . . Hauler 2 | . 2 . Recycler 1 | . 1 . Operator 1 | . 1 . Watcher 2 | . 2 . Swarmer 12 | . 6 6 Grunt 11 | . 9 2 Best Kill Streak 3 | 1 3 3 Combat Bots Only 3 | . 3 3 Max Kills in Single Turn 2 | 1 2 2 Gunslinging 1 | . 1 . Exploded 2 | . . 2 Melee . | . . . Uniques/NPCs Destroyed . | . . . Combat | -11 -10 -10 -------- Run | Yrd Mat Min Hostile Shots Fired 159 | . 107 52 Missed 43 | . 30 13 Damage Taken 1276 | . 832 444 Core 254 | . 143 111 Absorbed by Shields . | . . . Regen/Repaired (Parts) 73 | . 73 . Core Remaining (%) 100 | 100 . . Volleys Fired 94 | 1 78 15 Largest 2 | 2 2 2 Hottest 105 | 60 105 105 Shots Fired 183 | 2 155 26 Gun 179 | 2 155 22 Cannon . | . . . Launcher 4 | . . 4 Special . | . . . Kinetic 79 | 1 78 . Thermal 82 | 1 59 22 Explosive 4 | . . 4 Electromagnetic 18 | . 18 . Robot Hit Streak 13 | 2 13 13 Robot Miss Streak 2 | . 2 2 Penetration Max . | . . . Secondary Targets 4 | . 4 . Max Gunslinging Chain 1 | . 1 . Shots Hit Robots 131 | 2 108 21 Core Hits 53 | 1 40 12 Critical Kills . | . . . Critical Parts Destroyed 1 | . 1 . Critical Strikes 1 | . 1 . Destroy 1 | . 1 . Melee Attacks 3 | . 3 . Impact . | . . . Slashing 3 | . 3 . Piercing . | . . . Sneak Attacks . | . . . Combat Hostiles . | . . . Follow-up Attacks . | . . . Damage Inflicted 1847 | 26 1223 598 Guns 1504 | 26 1218 260 Cannons . | . . . Explosions 338 | . . 338 Melee . | . . . Ramming 5 | . 5 . Kinetic 558 | 15 543 . Thermal 824 | 11 553 260 Explosive 338 | . . 338 Electromagnetic 122 | . 122 . Impact . | . . . Slashing . | . . . Piercing . | . . . Highest Corruption . | . . . Average Corruption . | . . . Corruption Purged . | . . . Corruption Blocked . | . . . Overload Shots . | . . . Overflow Damage . | . . . Projectiles . | . . . Explosions . | . . . Melee . | . . . Knockbacks . | . . . Impact . | . . . Kinetic . | . . . Secondary . | . . . Self-Inflicted Damage 58 | . . 58 Shots 2 | . . 2 Rammed 2 | . 1 1 Targets Rammed 2 | . 1 1 Kicked . | . . . Crushed . | . . . Highest Temperature 297 | . 121 297 Average Temperature 57 | . 33 157 Received Heat Transfer 492 | . 354 138 Siege Activations . | . . . Robots Corrupted . | . . . Combat Hostiles . | . . . Parts Fried . | . . . Impact Corruptions . | . . . Robots Melted . | . . . Combat Hostiles . | . . . Parts Melted 5 | . 2 3 Heat Transferred 1905 | 25 1297 583 Parts Sabotaged . | . . . Parts Stolen . | . . . Parts Stripped . | . . . Power Chain Reactions . | . . . Alert | -11 -10 -10 ------- Run | Yrd Mat Min Peak Influence 170 | 5 170 135 Initial 3 | . 3 . Average 51 | 1 48 66 Maximum Alert Level . | . . . Low Security (%) 100 | 100 100 100 Level 1 . | . . . Level 2 . | . . . Level 3 . | . . . Level 4 . | . . . Level 5 . | . . . High Security . | . . . Max Security . | . . . Squads Dispatched 2 | . 2 . Investigation 1 | . 1 . Extermination . | . . . Reinforcement 1 | . 1 . Assault . | . . . Garrison . | . . . Intercept . | . . . Searches Triggered . | . . . Construction Impeded . | . . . Haulers Reinforced . | . . . Active Scanning Responses . | . . . Cargo Convoy Interrupts . | . . . Stealth | -11 -10 -10 --------- Run | Yrd Mat Min Distress Signals 2 | . 2 . Communications Jammed . | . . . Distress Signals . | . . . Times Spotted 36 | . 25 11 Peak Tracking Total 3 | . 3 3 Tactical Retreats 1 | . 1 . Traps | -11 -10 -10 ------- Run | Yrd Mat Min Traps Triggered 1 | . 1 . Indirectly . | . . . Trap Hack Attempts . | . . . Triggered . | . . . Disarmed . | . . . Reprogrammed . | . . . Reused . | . . . Traps Extracted . | . . . Installed . | . . . Triggered . | . . . Machines | -11 -10 -10 ---------- Run | Yrd Mat Min Machines Disabled . | . . . Max in Single Turn . | . . . Machines Repaired . | . . . Machines Dismantled . | . . . Machines Sabotaged . | . . . Overloaded Fab Kills . | . . . Hacking | -11 -10 -10 --------- Run | Yrd Mat Min Machines Accessed 9 | . 9 . Terminals 7 | . 7 . Fabricators . | . . . Repair Stations 1 | . 1 . Recycling Units 1 | . 1 . Scanalyzers . | . . . Garrison Access . | . . . Total Hacks 29 | . 29 . Successful 17 | . 17 . Failed 12 | . 12 . Catastrophic 2 | . 2 . Database Lockouts . | . . . Manual 19 | . 19 . Terminals 19 | . 19 . Fabricators . | . . . Repair Stations 6 | . 6 . Recycling Units 4 | . 4 . Scanalyzers . | . . . Garrison Access . | . . . Terminal Hacks 4 | . 4 . Part Schematic 1 | . 1 . Terminal Index 1 | . 1 . Unreport Threat 1 | . 1 . Hauler Manifests 1 | . 1 . Fabricator Hacks . | . . . Repair Station Hacks 5 | . 5 . Scan Component 3 | . 3 . Repair 2 | . 2 . Recycling Unit Hacks 2 | . 2 . Report Inventory 1 | . 1 . Retrieve Components 1 | . 1 . Scanalyzer . | . . . Garrison Access Hacks . | . . . Unauthorized Hacks 6 | . 6 . Terminals 4 | . 4 . Botnet 4 | . 4 . Fabricators . | . . . Repair Stations . | . . . Recycling Units 2 | . 2 . Reject 1 | . 1 . Mask 1 | . 1 . Scanalyzers . | . . . Garrison Access . | . . . Data Cores Recovered . | . . . Used . | . . . Hacking Detections 9 | . 9 . Full Trace Events 2 | . 2 . Feedback Events . | . . . Feedback Blocked . | . . . Robot Schematics Acquired . | . . . Robots Built . | . . . Authchips . | . . . Time . | . . . Total Robot Build Rating . | . . . Part Schematics Acquired 1 | . 1 . Parts Built . | . . . Authchips . | . . . Time . | . . . Total Part Build Rating . | . . . Parts Repaired 2 | . 2 . Time 70 | . 70 . Parts Recycled . | . . . Recycled Matter . | . . . Retrieved Matter . | . . . Retrieved Components 10 | . 10 . Parts Scanalyzed . | . . . Part Schematics Acquired . | . . . Parts Damaged . | . . . Bothacking | -11 -10 -10 ------------ Run | Yrd Mat Min Used RIF Installer . | . . . Robots Hacked . | . . . Non-combat . | . . . Combat . | . . . Robot Hacks Applied . | . . . Relay Couplers Released . | . . . Fabnet Peak Effective % . | . . . Robots Rewired . | . . . Allies Hacked . | . . . Hacks Repelled . | . . . Allies | -11 -10 -10 -------- Run | Yrd Mat Min Total Allies . | . . . Largest Group . | . . . Highest-Rated Group . | . . . Highest-Rated Ally . | . . . Total Orders . | . . . Ally Attacks . | . . . Total Damage . | . . . Kills . | . . . Allies Corrupted . | . . . Allies Melted . | . . . Intel | -11 -10 -10 ------- Run | Yrd Mat Min Robot Analysis Total . | . . . Derelict Logs Recovered 2 | . . 2 Drone Launches . | . . . Drone Recoveries . | . . . Exploration | -11 -10 -10 ------------- Run | Yrd Mat Min Turns Passed 2389 | 78 1663 648 Spaces Moved 1274 | 62 842 370 Core 1 | 1 . . Treads 1074 | . 704 370 Legs . | . . . Wheels 199 | 61 138 . Hover . | . . . Flight . | . . . Fastest Speed 50 | 50 100 160 Average Speed 150 | 99 150 160 Slowest Speed 240 | 100 240 160 Overloaded Moves . | . . . Propulsion Burnouts . | . . . Robots Hopped . | . . . Cave-ins Triggered . | . . . Exploration Rate (%) 55 | 5 99 61 Regions Visited 2 Branch Regions 1 Pre-discovered Areas . | . . . Known Exits Taken . | . . . Unknown Exits Taken 2 | 1 1 . Scrap Searched . | . . . Spaces Dug 1 | . 1 . Terrain Destroyed 27 | . 1 26 Melee 1 | . 1 . Projectile . | . . . AOE 26 | . . 26 Terrain Rammed . | . . . Walls Destroyed . | . . . Machines Disabled . | . . . Actions | -11 -10 -10 --------- Run | Yrd Mat Min Total 1566 | 73 1094 399 Wait 109 | . 102 7 Move 1272 | 61 841 370 Hop . | . . . Pick Up 39 | 4 34 1 Fast Attach 7 | 7 . . Attach 5 | . 5 . Detach . | . . . Swap 15 | . 11 4 Drop 20 | . 19 1 Fire 94 | 1 78 15 Melee 3 | . 3 . Ram . | . . . Kick . | . . . Crush 2 | . 1 1 Escape Stasis . | . . . Rewire . | . . . Trap . | . . . Miscellaneous . | . . . Route ------- -11/Scrapyard -10/Materials (discovered 4 exits: [*Mat x3] / [*Min]) -10/Mines (discovered 1 exit: [*Mat]) History --------- Turn | Location | Event 17 | -11/Scrapyard | Discovered new exit (range 15) 79 | -11/Scrapyard | Entered Materials 306 | -10/Materials | Discovered new exit (range 8) 311 | -10/Materials | Build established: Mutant 729 | -10/Materials | Lost 3 parts (1u2w) 774 | -10/Materials | Discovered new exit (range 16) 905 | -10/Materials | Discovered new exit (range 15) 980 | -10/Materials | Core integrity fell below 50% 1367 | -10/Materials | Repaired EM Pulse Gun? 1434 | -10/Materials | Repaired Broken Particle Gun 1598 | -10/Materials | Build established: Scavenger-Mutant 1628 | -10/Materials | Discovered new exit (range 15) 1742 | -10/Materials | Entered Mines 1985 | -10/Mines | Core integrity fell below 20% 1996 | -10/Mines | Learned 8 Materials zone layouts 1998 | -10/Mines | Learned Materials interactive machine intel 2122 | -10/Mines | Found a damaged Exp. Sensor Array with a note attached 2128 | -10/Mines | Found Prototype Device 2240 | -10/Mines | Discovered new exit (range 7) 2390 | -10/Mines | Destroyed by S-10 Pest with Light Assault Rifle Last Messages --------------- again, ha." 02127_ Dropped Lgt. Treads. 02128_ Acquired Prototype Device. 02172_ S-10 Pest destroyed. 02182_ Acquired 3 matter. 02184_ Acquired 2 matter. 02203_ K-01 Serf collects debris. 02204_ U-05 Engineer lays Concrete. 02208_ K-01 Serf cleans the Laser Drill. 02209_ U-05 Engineer lays Concrete. 02211_ U-05 Engineer builds a Wall. 02214_ U-05 Engineer lays Concrete. 02214_ R-06 Scavenger collects Lgt. Ion Engine. 02215_ U-05 Engineer lays Concrete. 02217_ U-05 Engineer builds a Wall. 02218_ K-01 Serf collects debris. 02218_ U-05 Engineer lays Concrete. 02221_ K-01 Serf collects debris. 02229_ U-05 Engineer lays Concrete. 02240_ EXIT=FOUND Map ----- +----------------------------------------------------+ | #??????????????# #????????????????????? | | #????????????????# #??????????????????????? | | # ##???????????????# ##????????########??????? | | ## #??????????????## ############## ##?????? | | ## #??????????????# ## #?????? | | # #???####?####??# ##?????? | | ##??# ##? ##?# ## # ######## | | ##?## #?# #?## #### | | ##### #?# #??## ## ###??### | | #### #??# #???# #### ##??????## ######## | | ??# ##### ##### #??#####????????####??????? | | ?## ###### #######???????????????????? | | ?# ##???# #???????????????????? | | ?# #????# ## ####### #???????????????????? | | ?# #????## ### #?????# #???????????????????? | | ## #????## ##?# #?????# #???????????????????? | | # ##???# #??# ####??# #######?????????????? | | ##### ##??# #??# #?????????????? | | "" ## #???#### #??####### #?????????????? | | "" % #??????# #????????# #?????????????? | | "" ### % ##??????#k##???????# #?????????????? | | ##?## ##??????## #???????# #?????????????? | | ##???## ##?????### ##??##### ##???????????## | | #?????#####?????## #??# ##??###????## | | ##???????????????# ss #### ########### | | #????????????????# s @ ### ### ## | | #????????????????# k## ### #### | | ##???????????????# #?########### | | #???????????????# ???????????# | | ???????????????# ???????????# | | ???????????????## ???????????## | | ????????????????## ???????????# ## | | ?????????????????## ???????????# ###### | | ??????????????????#????????????# ####????# | | ??????????????????????????????## """ ##??????## | | ?????????????????????????????## """ #??????## | | ????????????????????????????## """ #####?### < | | ???????????????????????????## ### | | ???????????????????????????# ## | | ???????????????????????????# ### | | ???????????????????????????# ####?# | | ???????????????????????????## ##????###### | | ????????????????????????????## #??????????# | | ?????????????????????????????## ##??????????## # | | ??????????????????????????????####????????????#### | | ?????????????????????????????????????????????????? | | ?????????????????????????????????????????????????# | | ????????????????????????????????????????????????## | | ????????????????????????????????????????????????# | | ????????????????????????????????????????????????# | +----------------------------------------------------+ Best States ------------- Heat Dissipation 35 Energy Generation 10 Energy Capacity 250 Matter Stores 300 Matter Capacity 300 Sight Range 16 Terrain Scan Density 10 Utility Shielding 33 Evasion (%) 40 Recoil Reduction 2 Item Schematics ----------------- Hcp. Storage Unit | -10/Materials | Hacked Robot Schematics ------------------ None Fabricated ------------ Nothing Alien Tech Used ----------------- None Achievements -------------- None Challenges ------------ None Game ------ Seed WeaponIntegrityClaws Manual? 0 Play Time 00:22:19 Cumulative 167.4 hours Start 2024.05.23 @ 06:56:12 End 2024.05.23 @ 07:19:49 Sessions 1 Manual Loads 0 Difficulty Rogue Special Mode None Game No. 46 Rogue 41 Adventurer 4 Explorer 1 Win Type - Total 2 Types 1/0/1/0/0/0/0/0/0 Lore% 38 Gallery% 58 Achievement% 41 Wizard Run 0 Options --------- Layout 0 ASCII 0 Keyboard 0 Movement Mouse Keybinds 0 Fullscreen 1 Font 24/Smallcaps Map View 76x50 Zoom Use 0% Tactical HUD 1 Map Filters NONE Filters NONE Steam X RUN: ef443d4a-9dc8-410f-ae5c-2f9144bec04d